[Event "Titled Tuesday Blitz November 07 Late 2023"]
[White "Giroyan, Gary"]
[Black "Lymar, Vladislav"]
[WhiteFideId "680281"]
[BlackFideId "14162180"]
[WhiteElo "2688"]
[BlackElo "2558"]
[Result "0-1"]
[Round "9"]
[TimeControl "180+1"]
[Date "2023.11.07"]
[WhiteClock "0:00:03"]
[BlackClock "0:00:03"]
[Board "35"]

1. d4 {[%clk 0:03:00]}  d6 {[%clk 0:02:59]} 2. Nf3 {[%clk 0:02:59]}  Nf6 {[%clk 0:02:55]} 3. c4 {[%clk 0:02:59]}  Nbd7 {[%clk 0:02:54]} 4. g3 {[%clk 0:02:56]}  e5 {[%clk 0:02:54]} 5. Bg2 {[%clk 0:02:55]}  Be7 {[%clk 0:02:54]} 6. O-O {[%clk 0:02:55]}  O-O {[%clk 0:02:55]} 7. Nc3 {[%clk 0:02:56]}  c6 {[%clk 0:02:54]} 8. e3 {[%clk 0:02:55]}  Qc7 {[%clk 0:02:53]} 9. a4 {[%clk 0:02:53]}  a5 {[%clk 0:02:52]} 10. b3 {[%clk 0:02:54]}  Re8 {[%clk 0:02:40]} 11. Ba3 {[%clk 0:02:54]}  Nb8 {[%clk 0:02:37]} 12. Rc1 {[%clk 0:02:49]}  Na6 {[%clk 0:02:30]} 13. Qc2 {[%clk 0:02:21]}  Bg4 {[%clk 0:02:22]} 14. h3 {[%clk 0:02:20]}  Bxf3 {[%clk 0:01:46]} 15. Bxf3 {[%clk 0:02:19]}  exd4 {[%clk 0:01:41]} 16. exd4 {[%clk 0:02:19]}  d5 {[%clk 0:01:33]} 17. Bxe7 {[%clk 0:02:12]}  Qxe7 {[%clk 0:01:34]} 18. Qd2 {[%clk 0:01:55]}  Nb4 {[%clk 0:01:22]} 19. Rfe1 {[%clk 0:01:55]}  Qd7 {[%clk 0:01:21]} 20. Kg2 {[%clk 0:01:55]}  h6 {[%clk 0:01:11]} 21. g4 {[%clk 0:01:50]}  Rad8 {[%clk 0:01:02]} 22. c5 {[%clk 0:01:49]}  Nh7 {[%clk 0:00:42]} 23. Ne2 {[%clk 0:01:28]}  Re7 {[%clk 0:00:36]} 24. Ng3 {[%clk 0:01:27]}  Rde8 {[%clk 0:00:29]} 25. Nf5 {[%clk 0:01:27]}  Rxe1 {[%clk 0:00:25]} 26. Rxe1 {[%clk 0:01:28]}  Rxe1 {[%clk 0:00:17]} 27. Qxe1 {[%clk 0:01:29]}  g6 {[%clk 0:00:13]} 28. Nd6 {[%clk 0:01:20]}  Ng5 {[%clk 0:00:13]} 29. Qe5 {[%clk 0:01:11]}  Ne6 {[%clk 0:00:11]} 30. h4 {[%clk 0:00:58]}  Nc2 {[%clk 0:00:11]} 31. h5 {[%clk 0:00:39]}  Ncxd4 {[%clk 0:00:11]} 32. Bd1 {[%clk 0:00:36]}  Qe7 {[%clk 0:00:06]} 33. Kg3 {[%clk 0:00:33]}  gxh5 {[%clk 0:00:05]} 34. Qxh5 {[%clk 0:00:28]}  Qf6 {[%clk 0:00:04]} 35. Nf5 {[%clk 0:00:18]}  Kh7 {[%clk 0:00:03]} 36. Ne3 {[%clk 0:00:14]}  Qg6 {[%clk 0:00:02]} 37. Qe5 {[%clk 0:00:12]}  Qg7 {[%clk 0:00:03]} 38. Qb8 {[%clk 0:00:10]}  Nxc5 {[%clk 0:00:03]} 39. Qd6 {[%clk 0:00:03]}  Ne4+ {[%clk 0:00:03]} 0-1


[Site "https://www.chess.com"]

[Event "Titled Tuesday Blitz November 07 Late 2023"]
[White "Santos Flores, Alberto"]
[Black "Rozman, Levy"]
[WhiteFideId "3601234"]
[BlackFideId "2039877"]
[WhiteElo "2552"]
[BlackElo "2679"]
[Result "0-1"]
[Round "9"]
[TimeControl "180+1"]
[Date "2023.11.07"]
[WhiteClock "0:00:13"]
[BlackClock "0:00:05"]
[Board "36"]

1. e4 {[%clk 0:03:00]}  c6 {[%clk 0:02:59]} 2. c4 {[%clk 0:02:59]}  d5 {[%clk 0:03:00]} 3. exd5 {[%clk 0:02:59]}  cxd5 {[%clk 0:03:00]} 4. cxd5 {[%clk 0:03:00]}  Nf6 {[%clk 0:03:01]} 5. Qa4+ {[%clk 0:03:00]}  Nbd7 {[%clk 0:03:01]} 6. Bc4 {[%clk 0:03:01]}  g6 {[%clk 0:03:00]} 7. Nc3 {[%clk 0:03:01]}  Bg7 {[%clk 0:03:00]} 8. Nf3 {[%clk 0:03:01]}  O-O {[%clk 0:03:00]} 9. d3 {[%clk 0:03:01]}  a6 {[%clk 0:02:55]} 10. Qa3 {[%clk 0:03:01]}  Nb6 {[%clk 0:02:43]} 11. Qb3 {[%clk 0:03:01]}  Nxc4 {[%clk 0:02:36]} 12. dxc4 {[%clk 0:03:01]}  b5 {[%clk 0:02:30]} 13. cxb5 {[%clk 0:02:55]}  axb5 {[%clk 0:02:29]} 14. O-O {[%clk 0:02:55]}  b4 {[%clk 0:02:25]} 15. Qxb4 {[%clk 0:02:54]}  Nxd5 {[%clk 0:02:26]} 16. Nxd5 {[%clk 0:02:53]}  Qxd5 {[%clk 0:02:27]} 17. Qxe7 {[%clk 0:02:53]}  Bg4 {[%clk 0:02:13]} 18. Nd2 {[%clk 0:02:16]}  Rfe8 {[%clk 0:02:04]} 19. Qb4 {[%clk 0:02:12]}  Be2 {[%clk 0:01:47]} 20. Re1 {[%clk 0:02:09]}  Reb8 {[%clk 0:01:30]} 21. Qe4 {[%clk 0:02:02]}  Qxe4 {[%clk 0:01:21]} 22. Nxe4 {[%clk 0:02:03]}  Bxb2 {[%clk 0:01:05]} 23. Bxb2 {[%clk 0:01:55]}  Rxb2 {[%clk 0:01:04]} 24. a4 {[%clk 0:01:54]}  Ra5 {[%clk 0:00:50]} 25. Reb1 {[%clk 0:01:13]}  Rxa4 {[%clk 0:00:31]} 26. Nc3 {[%clk 0:01:13]}  Rxa1 {[%clk 0:00:27]} 27. Rxa1 {[%clk 0:01:13]}  Bc4 {[%clk 0:00:25]} 28. Ne4 {[%clk 0:01:10]}  Kg7 {[%clk 0:00:22]} 29. Ng3 {[%clk 0:01:08]}  h5 {[%clk 0:00:21]} 30. h4 {[%clk 0:01:07]}  Bd5 {[%clk 0:00:19]} 31. Rd1 {[%clk 0:01:06]}  Be6 {[%clk 0:00:17]} 32. Ne4 {[%clk 0:01:03]}  Bf5 {[%clk 0:00:15]} 33. Ng5 {[%clk 0:01:01]}  Rb4 {[%clk 0:00:12]} 34. g3 {[%clk 0:00:58]}  Rb2 {[%clk 0:00:11]} 35. Re1 {[%clk 0:00:56]}  f6 {[%clk 0:00:10]} 36. Ne6+ {[%clk 0:00:55]}  Kh6 {[%clk 0:00:08]} 37. Nd4 {[%clk 0:00:55]}  Bd3 {[%clk 0:00:05]} 38. Re8 {[%clk 0:00:47]}  Bc4 {[%clk 0:00:03]} 39. Ne6 {[%clk 0:00:41]}  g5 {[%clk 0:00:02]} 40. hxg5+ {[%clk 0:00:40]}  fxg5 {[%clk 0:00:03]} 41. Nd4 {[%clk 0:00:36]}  Bd5 {[%clk 0:00:03]} 42. Re1 {[%clk 0:00:35]}  Rd2 {[%clk 0:00:03]} 43. Nf5+ {[%clk 0:00:35]}  Kg6 {[%clk 0:00:03]} 44. Ne3 {[%clk 0:00:36]}  Bf3 {[%clk 0:00:04]} 45. Ra1 {[%clk 0:00:35]}  h4 {[%clk 0:00:04]} 46. gxh4 {[%clk 0:00:33]}  gxh4 {[%clk 0:00:04]} 47. Ra6+ {[%clk 0:00:31]}  Kg5 {[%clk 0:00:04]} 48. Ra1 {[%clk 0:00:28]}  Rb2 {[%clk 0:00:03]} 49. Ra5+ {[%clk 0:00:27]}  Kf4 {[%clk 0:00:02]} 50. Ra4+ {[%clk 0:00:27]}  Kg5 {[%clk 0:00:02]} 51. Ra5+ {[%clk 0:00:27]}  Kg6 {[%clk 0:00:03]} 52. Ra1 {[%clk 0:00:27]}  h3 {[%clk 0:00:02]} 53. Nf1 {[%clk 0:00:23]}  Be4 {[%clk 0:00:02]} 54. Nh2 {[%clk 0:00:21]}  Bd3 {[%clk 0:00:02]} 55. Nf3 {[%clk 0:00:20]}  Be4 {[%clk 0:00:02]} 56. Nh2 {[%clk 0:00:20]}  Bd5 {[%clk 0:00:02]} 57. Rd1 {[%clk 0:00:21]}  Bb7 {[%clk 0:00:02]} 58. Re1 {[%clk 0:00:20]}  Kf5 {[%clk 0:00:02]} 59. Nf1 {[%clk 0:00:19]}  Kf4 {[%clk 0:00:03]} 60. Ng3 {[%clk 0:00:19]}  h2+ {[%clk 0:00:03]} 61. Kxh2 {[%clk 0:00:19]}  Rxf2+ {[%clk 0:00:04]} 62. Kh3 {[%clk 0:00:15]}  Bc8+ {[%clk 0:00:05]} 63. Nf5 {[%clk 0:00:13]}  Bxf5+ {[%clk 0:00:04]} 64. Kh4 {[%clk 0:00:13]}  Rh2# {[%clk 0:00:05]} 0-1


[Site "https://www.chess.com"]

[Event "Titled Tuesday Blitz November 07 Late 2023"]
[White "Tikhonov, Viacheslav"]
[Black "Kavutskiy, Konstantin"]
[WhiteFideId "44196407"]
[BlackFideId "2026384"]
[WhiteElo "2551"]
[BlackElo "2677"]
[Result "1-0"]
[Round "9"]
[TimeControl "180+1"]
[Date "2023.11.07"]
[WhiteClock "0:00:30"]
[BlackClock "0:00:17"]
[Board "37"]

1. e4 {[%clk 0:03:00]}  c5 {[%clk 0:02:59]} 2. c3 {[%clk 0:03:00]}  Nf6 {[%clk 0:02:58]} 3. e5 {[%clk 0:03:00]}  Nd5 {[%clk 0:02:58]} 4. g3 {[%clk 0:03:01]}  d6 {[%clk 0:02:54]} 5. exd6 {[%clk 0:03:02]}  e6 {[%clk 0:02:52]} 6. Bg2 {[%clk 0:03:03]}  Bxd6 {[%clk 0:02:52]} 7. Ne2 {[%clk 0:03:03]}  O-O {[%clk 0:02:52]} 8. O-O {[%clk 0:03:04]}  Nc6 {[%clk 0:02:48]} 9. Na3 {[%clk 0:03:05]}  b6 {[%clk 0:02:47]} 10. Nc4 {[%clk 0:03:00]}  Bc7 {[%clk 0:02:42]} 11. Ne3 {[%clk 0:02:59]}  Nxe3 {[%clk 0:02:38]} 12. dxe3 {[%clk 0:03:00]}  Bb7 {[%clk 0:02:36]} 13. c4 {[%clk 0:02:56]}  Qf6 {[%clk 0:02:31]} 14. a3 {[%clk 0:02:50]}  Rad8 {[%clk 0:02:28]} 15. Qc2 {[%clk 0:02:50]}  Bb8 {[%clk 0:02:22]} 16. Bd2 {[%clk 0:02:49]}  e5 {[%clk 0:02:18]} 17. Bc3 {[%clk 0:02:48]}  Qe7 {[%clk 0:02:13]} 18. Bd5 {[%clk 0:02:46]}  Rd7 {[%clk 0:02:08]} 19. Rad1 {[%clk 0:02:45]}  Rfd8 {[%clk 0:02:07]} 20. Be4 {[%clk 0:02:41]}  g6 {[%clk 0:02:05]} 21. Rxd7 {[%clk 0:02:39]}  Rxd7 {[%clk 0:02:05]} 22. Rd1 {[%clk 0:02:38]}  Nd8 {[%clk 0:02:01]} 23. Bxb7 {[%clk 0:02:37]}  Nxb7 {[%clk 0:02:01]} 24. Rxd7 {[%clk 0:02:26]}  Qxd7 {[%clk 0:02:02]} 25. Qe4 {[%clk 0:02:26]}  f6 {[%clk 0:01:47]} 26. Kg2 {[%clk 0:02:21]}  Nd6 {[%clk 0:01:39]} 27. Qd5+ {[%clk 0:02:21]}  Qf7 {[%clk 0:01:40]} 28. Qa8 {[%clk 0:01:59]}  Qc7 {[%clk 0:01:36]} 29. b3 {[%clk 0:01:57]}  Nb7 {[%clk 0:01:37]} 30. a4 {[%clk 0:01:54]}  Kf7 {[%clk 0:01:33]} 31. Be1 {[%clk 0:01:46]}  Qc6+ {[%clk 0:01:27]} 32. Kg1 {[%clk 0:01:46]}  Qc8 {[%clk 0:01:20]} 33. Nc3 {[%clk 0:01:44]}  Ke6 {[%clk 0:01:18]} 34. Nd5 {[%clk 0:01:44]}  Nd8 {[%clk 0:01:08]} 35. a5 {[%clk 0:01:33]}  bxa5 {[%clk 0:01:01]} 36. Bxa5 {[%clk 0:01:28]}  Nc6 {[%clk 0:00:59]} 37. Bc7 {[%clk 0:01:14]}  Kd7 {[%clk 0:00:43]} 38. Bxb8 {[%clk 0:01:08]}  Qxb8 {[%clk 0:00:44]} 39. Nxf6+ {[%clk 0:01:07]}  Kc7 {[%clk 0:00:45]} 40. Nd5+ {[%clk 0:01:06]}  Kd6 {[%clk 0:00:45]} 41. Qxb8+ {[%clk 0:01:05]}  Nxb8 {[%clk 0:00:46]} 42. Nf6 {[%clk 0:00:55]}  Kc6 {[%clk 0:00:39]} 43. Kf1 {[%clk 0:00:54]}  h5 {[%clk 0:00:35]} 44. Ke2 {[%clk 0:00:54]}  Kb6 {[%clk 0:00:34]} 45. h4 {[%clk 0:00:51]}  Ka5 {[%clk 0:00:30]} 46. Kd3 {[%clk 0:00:51]}  Kb4 {[%clk 0:00:29]} 47. Kc2 {[%clk 0:00:51]}  Nc6 {[%clk 0:00:25]} 48. Nd5+ {[%clk 0:00:46]}  Ka3 {[%clk 0:00:24]} 49. Kc3 {[%clk 0:00:44]}  Na5 {[%clk 0:00:23]} 50. Nc7 {[%clk 0:00:39]}  Nxb3 {[%clk 0:00:20]} 51. Nb5+ {[%clk 0:00:39]}  Ka4 {[%clk 0:00:20]} 52. Nxa7 {[%clk 0:00:39]}  Nc1 {[%clk 0:00:20]} 53. Nc6 {[%clk 0:00:38]}  Ne2+ {[%clk 0:00:19]} 54. Kd2 {[%clk 0:00:38]}  Ng1 {[%clk 0:00:19]} 55. Nxe5 {[%clk 0:00:38]}  Kb3 {[%clk 0:00:20]} 56. Kd3 {[%clk 0:00:37]}  Nh3 {[%clk 0:00:19]} 57. f4 {[%clk 0:00:34]}  Nf2+ {[%clk 0:00:19]} 58. Ke2 {[%clk 0:00:32]}  Ng4 {[%clk 0:00:19]} 59. Nxg4 {[%clk 0:00:30]}  hxg4 {[%clk 0:00:17]} 60. Kd3 {[%clk 0:00:30]} 1-0


[Site "https://www.chess.com"]

[Event "Titled Tuesday Blitz November 07 Late 2023"]
[White "Gubajdullin, Alexei"]
[Black "Wartiovaara, Oliver"]
[WhiteFideId "4141202"]
[BlackFideId "513024"]
[WhiteElo "2659"]
[BlackElo "2544"]
[Result "1-0"]
[Round "9"]
[TimeControl "180+1"]
[Date "2023.11.07"]
[WhiteClock "0:00:14"]
[BlackClock "0:00:01"]
[Board "38"]

1. d4 {[%clk 0:03:00]}  e6 {[%clk 0:02:42]} 2. Nf3 {[%clk 0:02:52]}  c5 {[%clk 0:02:37]} 3. c3 {[%clk 0:02:51]}  d5 {[%clk 0:02:33]} 4. Bf4 {[%clk 0:02:51]}  Nc6 {[%clk 0:02:31]} 5. e3 {[%clk 0:02:51]}  Bd6 {[%clk 0:02:31]} 6. Bg3 {[%clk 0:02:50]}  Nf6 {[%clk 0:02:28]} 7. Nbd2 {[%clk 0:02:50]}  O-O {[%clk 0:02:28]} 8. Bd3 {[%clk 0:02:50]}  b6 {[%clk 0:01:55]} 9. Ne5 {[%clk 0:02:49]}  Bb7 {[%clk 0:01:52]} 10. f4 {[%clk 0:02:49]}  Ne7 {[%clk 0:01:50]} 11. Qf3 {[%clk 0:02:48]}  Nf5 {[%clk 0:01:47]} 12. Bf2 {[%clk 0:02:48]}  Be7 {[%clk 0:01:46]} 13. Qh3 {[%clk 0:02:43]}  Nd6 {[%clk 0:01:43]} 14. g4 {[%clk 0:02:41]}  Nfe4 {[%clk 0:01:40]} 15. g5 {[%clk 0:02:41]}  Nf5 {[%clk 0:01:24]} 16. Rg1 {[%clk 0:02:36]}  f6 {[%clk 0:01:03]} 17. gxf6 {[%clk 0:02:30]}  Bxf6 {[%clk 0:01:04]} 18. Nxe4 {[%clk 0:02:30]}  dxe4 {[%clk 0:01:04]} 19. Bc4 {[%clk 0:02:23]}  Bd5 {[%clk 0:01:04]} 20. Be2 {[%clk 0:01:59]}  cxd4 {[%clk 0:00:59]} 21. exd4 {[%clk 0:01:59]}  Bxe5 {[%clk 0:00:23]} 22. fxe5 {[%clk 0:01:57]}  Rc8 {[%clk 0:00:19]} 23. Rc1 {[%clk 0:01:31]}  e3 {[%clk 0:00:15]} 24. Bxe3 {[%clk 0:01:30]}  Nxe3 {[%clk 0:00:16]} 25. Qxe3 {[%clk 0:01:29]}  Qh4+ {[%clk 0:00:15]} 26. Kd2 {[%clk 0:01:28]}  Rf2 {[%clk 0:00:13]} 27. Rcf1 {[%clk 0:01:25]}  Rcf8 {[%clk 0:00:12]} 28. Rxf2 {[%clk 0:00:39]}  Rxf2 {[%clk 0:00:12]} 29. Qg3 {[%clk 0:00:21]}  Qxg3 {[%clk 0:00:08]} 30. hxg3 {[%clk 0:00:21]}  Bc4 {[%clk 0:00:05]} 31. Re1 {[%clk 0:00:20]}  Rg2 {[%clk 0:00:05]} 32. b3 {[%clk 0:00:19]}  Bxe2 {[%clk 0:00:05]} 33. Rxe2 {[%clk 0:00:20]}  Rxg3 {[%clk 0:00:06]} 34. c4 {[%clk 0:00:20]}  h5 {[%clk 0:00:05]} 35. d5 {[%clk 0:00:20]}  Kf7 {[%clk 0:00:04]} 36. d6 {[%clk 0:00:19]}  Ke8 {[%clk 0:00:05]} 37. b4 {[%clk 0:00:19]}  h4 {[%clk 0:00:03]} 38. c5 {[%clk 0:00:19]}  bxc5 {[%clk 0:00:04]} 39. bxc5 {[%clk 0:00:18]}  Rg4 {[%clk 0:00:03]} 40. Kc3 {[%clk 0:00:18]}  Ra4 {[%clk 0:00:01]} 41. c6 {[%clk 0:00:16]}  Ra6 {[%clk 0:00:01]} 42. c7 {[%clk 0:00:17]}  Rc6+ {[%clk 0:00:01]} 43. Kb4 {[%clk 0:00:17]}  g5 {[%clk 0:00:02]} 44. Rf2 {[%clk 0:00:17]}  h3 {[%clk 0:00:02]} 45. Rf6 {[%clk 0:00:16]}  g4 {[%clk 0:00:01]} 46. Rxe6+ {[%clk 0:00:17]}  Kf7 {[%clk 0:00:02]} 47. Rh6 {[%clk 0:00:16]}  Kg7 {[%clk 0:00:01]} 48. Rh4 {[%clk 0:00:16]}  Kg6 {[%clk 0:00:01]} 49. Rxg4+ {[%clk 0:00:14]}  Kf5 {[%clk 0:00:01]} 1-0


[Site "https://www.chess.com"]

[Event "Titled Tuesday Blitz November 07 Late 2023"]
[White "TimGrutter03"]
[Black "reevecanada"]
[WhiteElo "2529"]
[BlackElo "2653"]
[Result "1-0"]
[Round "9"]
[TimeControl "180+1"]
[Date "2023.11.07"]
[WhiteClock "0:00:31"]
[BlackClock "0:00:15"]
[Board "40"]

1. e4 {[%clk 0:03:00]}  c5 {[%clk 0:02:59]} 2. Nf3 {[%clk 0:03:00]}  d6 {[%clk 0:02:59]} 3. g3 {[%clk 0:03:00]}  Nf6 {[%clk 0:02:59]} 4. Nc3 {[%clk 0:02:59]}  Nc6 {[%clk 0:02:59]} 5. d4 {[%clk 0:02:58]}  cxd4 {[%clk 0:02:58]} 6. Nxd4 {[%clk 0:02:59]}  g6 {[%clk 0:02:58]} 7. Bg2 {[%clk 0:02:58]}  Bg7 {[%clk 0:02:58]} 8. Nde2 {[%clk 0:02:59]}  O-O {[%clk 0:02:58]} 9. O-O {[%clk 0:02:59]}  Nd7 {[%clk 0:02:57]} 10. Nd5 {[%clk 0:02:58]}  e6 {[%clk 0:02:56]} 11. Ndc3 {[%clk 0:02:58]}  Nc5 {[%clk 0:02:56]} 12. Nb5 {[%clk 0:02:54]}  Be5 {[%clk 0:02:48]} 13. f4 {[%clk 0:02:54]}  Qb6 {[%clk 0:02:46]} 14. fxe5 {[%clk 0:02:21]}  Nb3+ {[%clk 0:02:44]} 15. Kh1 {[%clk 0:02:20]}  Nxa1 {[%clk 0:02:43]} 16. Bh6 {[%clk 0:01:46]}  Qxb5 {[%clk 0:01:14]} 17. Bxf8 {[%clk 0:01:45]}  Kxf8 {[%clk 0:01:14]} 18. Qxd6+ {[%clk 0:01:44]}  Kg7 {[%clk 0:01:13]} 19. Qc7 {[%clk 0:01:37]}  Nxe5 {[%clk 0:00:43]} 20. Rxa1 {[%clk 0:01:35]}  Ng4 {[%clk 0:00:28]} 21. Rf1 {[%clk 0:01:25]}  Qd7 {[%clk 0:00:26]} 22. Qc3+ {[%clk 0:01:20]}  Kg8 {[%clk 0:00:26]} 23. h3 {[%clk 0:01:20]}  Nh6 {[%clk 0:00:25]} 24. g4 {[%clk 0:01:01]}  f5 {[%clk 0:00:23]} 25. exf5 {[%clk 0:00:58]}  exf5 {[%clk 0:00:21]} 26. Qc4+ {[%clk 0:00:40]}  Qf7 {[%clk 0:00:20]} 27. Bd5 {[%clk 0:00:39]}  Bd7 {[%clk 0:00:17]} 28. Bxf7+ {[%clk 0:00:39]}  Nxf7 {[%clk 0:00:18]} 29. gxf5 {[%clk 0:00:37]}  gxf5 {[%clk 0:00:17]} 30. Rg1+ {[%clk 0:00:32]}  Kh8 {[%clk 0:00:15]} 31. Qxf7 {[%clk 0:00:31]} 1-0


[Site "https://www.chess.com"]

[Event "Titled Tuesday Blitz November 07 Late 2023"]
[White "Osmak, Yuliia"]
[Black "Brodsky, David"]
[WhiteFideId "14101602"]
[BlackFideId "2073250"]
[WhiteElo "2511"]
[BlackElo "2790"]
[Result "1-0"]
[Round "9"]
[TimeControl "180+1"]
[Date "2023.11.07"]
[WhiteClock "0:00:44"]
[BlackClock "0:00:09"]
[Board "42"]

1. e4 {[%clk 0:03:00]}  e5 {[%clk 0:03:00]} 2. Nf3 {[%clk 0:03:00]}  Nc6 {[%clk 0:03:01]} 3. Nc3 {[%clk 0:03:00]}  Nf6 {[%clk 0:03:00]} 4. Bb5 {[%clk 0:02:59]}  Bb4 {[%clk 0:02:59]} 5. O-O {[%clk 0:02:58]}  O-O {[%clk 0:02:59]} 6. Bxc6 {[%clk 0:02:57]}  dxc6 {[%clk 0:02:59]} 7. d3 {[%clk 0:02:55]}  Qe7 {[%clk 0:02:53]} 8. Ne2 {[%clk 0:02:51]}  h6 {[%clk 0:02:51]} 9. Ng3 {[%clk 0:02:48]}  Rd8 {[%clk 0:02:45]} 10. Qe2 {[%clk 0:02:46]}  a5 {[%clk 0:02:40]} 11. Nh4 {[%clk 0:02:42]}  a4 {[%clk 0:02:33]} 12. Nhf5 {[%clk 0:02:40]}  Qf8 {[%clk 0:02:33]} 13. Qf3 {[%clk 0:02:34]}  Be7 {[%clk 0:02:07]} 14. a3 {[%clk 0:02:13]}  Kh7 {[%clk 0:01:26]} 15. Bd2 {[%clk 0:02:11]}  Ng8 {[%clk 0:01:23]} 16. Bc3 {[%clk 0:02:02]}  g6 {[%clk 0:01:16]} 17. Ne3 {[%clk 0:01:48]}  Bf6 {[%clk 0:01:09]} 18. Ng4 {[%clk 0:01:42]}  Bxg4 {[%clk 0:01:07]} 19. Qxg4 {[%clk 0:01:43]}  h5 {[%clk 0:01:05]} 20. Qh3 {[%clk 0:01:38]}  Qh6 {[%clk 0:00:57]} 21. Ne2 {[%clk 0:01:22]}  g5 {[%clk 0:00:29]} 22. Bxe5 {[%clk 0:01:09]}  g4 {[%clk 0:00:25]} 23. Qg3 {[%clk 0:01:07]}  Re8 {[%clk 0:00:14]} 24. Bxf6 {[%clk 0:01:02]}  Nxf6 {[%clk 0:00:15]} 25. Qxc7 {[%clk 0:01:01]}  Qg6 {[%clk 0:00:10]} 26. Qxb7 {[%clk 0:00:58]}  Rab8 {[%clk 0:00:10]} 27. Qxc6 {[%clk 0:00:57]}  Rxb2 {[%clk 0:00:11]} 28. Nf4 {[%clk 0:00:50]}  Qg7 {[%clk 0:00:10]} 29. Nxh5 {[%clk 0:00:49]}  Nxh5 {[%clk 0:00:10]} 30. Qxe8 {[%clk 0:00:48]}  Rxc2 {[%clk 0:00:11]} 31. Qxa4 {[%clk 0:00:45]}  Nf4 {[%clk 0:00:09]} 32. Qxc2 {[%clk 0:00:44]} 1-0


[Site "https://www.chess.com"]

[Event "Titled Tuesday Blitz November 07 Late 2023"]
[White "Willy, Stephen"]
[Black "Shuvalova, Polina"]
[WhiteFideId "30981468"]
[BlackFideId "24171760"]
[WhiteElo "2492"]
[BlackElo "2634"]
[Result "1/2-1/2"]
[Round "9"]
[TimeControl "180+1"]
[Date "2023.11.07"]
[WhiteClock "0:00:03"]
[BlackClock "0:00:04"]
[Board "45"]

1. e4 {[%clk 0:02:58]}  c6 {[%clk 0:02:59]} 2. d4 {[%clk 0:02:55]}  d5 {[%clk 0:03:00]} 3. e5 {[%clk 0:02:54]}  Bf5 {[%clk 0:03:00]} 4. Nf3 {[%clk 0:02:53]}  e6 {[%clk 0:03:00]} 5. Be2 {[%clk 0:02:54]}  Ne7 {[%clk 0:03:00]} 6. O-O {[%clk 0:02:50]}  Ng6 {[%clk 0:03:01]} 7. Nbd2 {[%clk 0:02:44]}  f6 {[%clk 0:03:01]} 8. exf6 {[%clk 0:02:40]}  Qxf6 {[%clk 0:03:01]} 9. Re1 {[%clk 0:02:40]}  Bd6 {[%clk 0:02:59]} 10. Nf1 {[%clk 0:02:36]}  O-O {[%clk 0:02:58]} 11. Ng3 {[%clk 0:02:37]}  Be4 {[%clk 0:02:46]} 12. Be3 {[%clk 0:02:30]}  Nd7 {[%clk 0:02:45]} 13. Nxe4 {[%clk 0:02:26]}  dxe4 {[%clk 0:02:45]} 14. Ng5 {[%clk 0:02:27]}  Bf4 {[%clk 0:02:25]} 15. Nxe4 {[%clk 0:02:24]}  Qf5 {[%clk 0:02:25]} 16. Ng3 {[%clk 0:02:15]}  Qf7 {[%clk 0:02:19]} 17. Qd2 {[%clk 0:02:02]}  Rae8 {[%clk 0:02:14]} 18. Bd3 {[%clk 0:01:53]}  Bxe3 {[%clk 0:02:11]} 19. fxe3 {[%clk 0:01:50]}  Kh8 {[%clk 0:02:05]} 20. Rf1 {[%clk 0:01:35]}  Qe7 {[%clk 0:02:04]} 21. Qe2 {[%clk 0:01:29]}  Qg5 {[%clk 0:02:00]} 22. Ne4 {[%clk 0:01:24]}  Qh4 {[%clk 0:01:59]} 23. Nd6 {[%clk 0:01:21]}  Rb8 {[%clk 0:01:53]} 24. Bc4 {[%clk 0:01:17]}  Qe7 {[%clk 0:01:47]} 25. Ne4 {[%clk 0:01:04]}  e5 {[%clk 0:01:48]} 26. Qg4 {[%clk 0:00:53]}  exd4 {[%clk 0:01:45]} 27. exd4 {[%clk 0:00:54]}  Rbe8 {[%clk 0:01:41]} 28. Rxf8+ {[%clk 0:00:37]}  Ndxf8 {[%clk 0:01:40]} 29. Bd3 {[%clk 0:00:33]}  Qe6 {[%clk 0:01:35]} 30. Qxe6 {[%clk 0:00:29]}  Nxe6 {[%clk 0:01:36]} 31. Nd6 {[%clk 0:00:24]}  Re7 {[%clk 0:01:34]} 32. c3 {[%clk 0:00:22]}  Ngf4 {[%clk 0:01:29]} 33. Bc4 {[%clk 0:00:21]}  Rd7 {[%clk 0:01:27]} 34. Ne4 {[%clk 0:00:19]}  b5 {[%clk 0:01:20]} 35. Bb3 {[%clk 0:00:18]}  Nd5 {[%clk 0:01:19]} 36. Rf1 {[%clk 0:00:16]}  Kg8 {[%clk 0:01:18]} 37. a4 {[%clk 0:00:14]}  b4 {[%clk 0:01:15]} 38. cxb4 {[%clk 0:00:10]}  Nxd4 {[%clk 0:01:13]} 39. Bc4 {[%clk 0:00:09]}  h5 {[%clk 0:00:44]} 40. b5 {[%clk 0:00:09]}  Kh7 {[%clk 0:00:42]} 41. bxc6 {[%clk 0:00:07]}  Nxc6 {[%clk 0:00:43]} 42. Nc5 {[%clk 0:00:07]}  Rd6 {[%clk 0:00:43]} 43. Bd3+ {[%clk 0:00:07]}  Kh6 {[%clk 0:00:42]} 44. h4 {[%clk 0:00:05]}  Ne3 {[%clk 0:00:39]} 45. Re1 {[%clk 0:00:04]}  Ng4 {[%clk 0:00:38]} 46. Re6+ {[%clk 0:00:04]}  Rxe6 {[%clk 0:00:38]} 47. Nxe6 {[%clk 0:00:05]}  Nb4 {[%clk 0:00:36]} 48. Be4 {[%clk 0:00:05]}  Nf6 {[%clk 0:00:34]} 49. Bb7 {[%clk 0:00:04]}  a5 {[%clk 0:00:33]} 50. Ng5 {[%clk 0:00:04]}  Kg6 {[%clk 0:00:33]} 51. Bf3 {[%clk 0:00:03]}  Kf5 {[%clk 0:00:33]} 52. Kf2 {[%clk 0:00:03]}  Ke5 {[%clk 0:00:33]} 53. Ke3 {[%clk 0:00:03]}  Nc2+ {[%clk 0:00:31]} 54. Kd2 {[%clk 0:00:03]}  Nd4 {[%clk 0:00:32]} 55. Bd1 {[%clk 0:00:04]}  Kf4 {[%clk 0:00:31]} 56. Kc3 {[%clk 0:00:04]}  Nc6 {[%clk 0:00:31]} 57. Ne6+ {[%clk 0:00:04]}  Kg3 {[%clk 0:00:31]} 58. Nxg7 {[%clk 0:00:05]}  Kxg2 {[%clk 0:00:27]} 59. Nxh5 {[%clk 0:00:04]}  Ne4+ {[%clk 0:00:27]} 60. Kc4 {[%clk 0:00:04]}  Nf2 {[%clk 0:00:28]} 61. Bc2 {[%clk 0:00:03]}  Kh3 {[%clk 0:00:27]} 62. Kb5 {[%clk 0:00:03]}  Nd4+ {[%clk 0:00:27]} 63. Kxa5 {[%clk 0:00:03]}  Nxc2 {[%clk 0:00:27]} 64. Nf4+ {[%clk 0:00:03]}  Kxh4 {[%clk 0:00:28]} 65. Nd5 {[%clk 0:00:04]}  Kg5 {[%clk 0:00:27]} 66. b4 {[%clk 0:00:04]}  Kf5 {[%clk 0:00:27]} 67. b5 {[%clk 0:00:04]}  Ke5 {[%clk 0:00:27]} 68. Nc7 {[%clk 0:00:04]}  Kd6 {[%clk 0:00:24]} 69. Kb6 {[%clk 0:00:04]}  Ne4 {[%clk 0:00:08]} 70. a5 {[%clk 0:00:04]}  Nc5 {[%clk 0:00:05]} 71. Ne8+ {[%clk 0:00:04]}  Kd5 {[%clk 0:00:05]} 72. Nf6+ {[%clk 0:00:04]}  Kc4 {[%clk 0:00:05]} 73. a6 {[%clk 0:00:03]}  Na4+ {[%clk 0:00:04]} 74. Ka5 {[%clk 0:00:03]}  Kb3 {[%clk 0:00:01]} 75. a7 {[%clk 0:00:03]}  Na3 {[%clk 0:00:01]} 76. a8=Q {[%clk 0:00:03]}  Nc4+ {[%clk 0:00:02]} 77. Ka6 {[%clk 0:00:01]}  Nc5+ {[%clk 0:00:03]} 78. Ka7 {[%clk 0:00:02]}  Kb4 {[%clk 0:00:02]} 79. Qd5 {[%clk 0:00:02]}  Na5 {[%clk 0:00:02]} 80. Ne4 {[%clk 0:00:02]}  Nc4 {[%clk 0:00:03]} 81. Qxc5+ {[%clk 0:00:02]}  Kb3 {[%clk 0:00:04]} 82. Qd4 {[%clk 0:00:02]}  Na3 {[%clk 0:00:04]} 83. b6 {[%clk 0:00:02]}  Nb5+ {[%clk 0:00:05]} 84. Kb7 {[%clk 0:00:03]}  Nxd4 {[%clk 0:00:06]} 85. Kc7 {[%clk 0:00:03]}  Nb5+ {[%clk 0:00:06]} 86. Kc6 {[%clk 0:00:03]}  Nd4+ {[%clk 0:00:06]} 87. Kc5 {[%clk 0:00:04]}  Ne6+ {[%clk 0:00:06]} 88. Kd6 {[%clk 0:00:05]}  Nd8 {[%clk 0:00:06]} 89. Nc5+ {[%clk 0:00:05]}  Kb4 {[%clk 0:00:06]} 90. Nd7 {[%clk 0:00:04]}  Kb5 {[%clk 0:00:06]} 91. Kc7 {[%clk 0:00:05]}  Ne6+ {[%clk 0:00:05]} 92. Kc8 {[%clk 0:00:05]}  Nc5 {[%clk 0:00:04]} 93. Nxc5 {[%clk 0:00:03]}  Kxb6 {[%clk 0:00:04]} 1/2-1/2


[Site "https://www.chess.com"]